bitfinex-derivatives/quotes_SOLF0:USTF0_20251211
["timestamp","ask_amount","ask_price","bid_price","bid_amount"]
[1765494778385,3.65694253,136.54,136.52,6.5911]
[1765494778586,3.65694253,136.54,136.52,0.05520706]
[1765494778780,3.65694253,136.54,136.52,3.30520706]
[1765494778995,3.65694253,136.54,136.52,9.89620706]
[1765494779391,3.65694253,136.54,136.53,3.25]
[1765494780001,3.65694253,136.54,136.52,6.64620706]
[1765494781087,6.64694253,136.54,136.52,0.05520706]
[1765494781997,2.99,136.53,136.52,0.05520706]
[1765494783404,2.99,136.53,136.46,65.59]
[1765494783405,2.99,136.53,136.46,3.25]
[1765494784297,14.6578122,136.54,136.45,6.5943]
[1765494784503,2.99,136.5,136.48,0.05351773]
[1765494784887,62.38876662,136.51,136.48,3.30351773]
[1765494785088,2.99,136.5,136.48,0.05351773]
[1765494786092,62.38876662,136.51,136.48,0.05351773]
[1765494786287,0.04876662,136.51,136.48,3.30351773]
[1765494786800,0.04876662,136.51,136.49,9.8425]
[1765494787898,0.04876662,136.51,136.49,6.5925]
[1765494789299,0.04876662,136.51,136.49,9.8425]
[1765494789509,0.04876662,136.51,136.5,3.25]
[1765494789898,3.65694253,136.54,136.52,3.25]
[1765494790110,3.65694253,136.54,136.51,102.535]
[1765494790111,3.65694253,136.54,136.49,3.25]
[1765494790403,6.64694253,136.54,136.51,6.5914]
[1765494790908,6.64694253,136.54,136.51,6.63916713]
[1765494791503,2.99,136.53,136.51,0.04776713]
[1765494793197,3.65694253,136.54,136.51,0.04776713]
[1765494793410,3.65694253,136.54,136.51,6.63936713]
[1765494793807,6.64694253,136.54,136.51,6.63936713]
[1765494795297,2.99,136.53,136.51,0.04776713]
[1765494795501,3.65694253,136.54,136.51,0.04776713]
[1765494796015,6.64694253,136.54,136.51,0.04776713]
[1765494796514,2.99,136.53,136.51,6.63936713]
[1765494797024,6.64694253,136.54,136.51,6.63936713]
[1765494797708,2.99,136.53,136.51,0.04776713]
[1765494802708,2.99,136.52,136.51,0.04776713]
[1765494803509,65.31,136.53,136.51,0.04776713]
[1765494803709,2.99,136.52,136.51,0.04776713]
[1765494806416,2.99,136.52,136.46,6.5937]
[1765494806617,2.99,136.5,136.46,6.5937]
[1765494807316,0.05420757,136.49,136.47,0.05609668]
[1765494808415,3.04420757,136.49,136.47,6.64969668]
[1765494808919,3.04420757,136.49,136.47,0.05609668]
[1765494809220,3.04420757,136.49,136.47,6.64969668]
[1765494811623,3.04420757,136.49,136.47,9.92969668]
[1765494811624,0.05420757,136.49,136.47,9.92969668]
[1765494812925,0.05420757,136.49,136.47,3.33609668]
[1765494813120,3.04420757,136.49,136.47,0.05609668]
[1765494814928,6.75027596,136.48,136.41,3.28]
[1765494815119,2.99,136.46,136.41,3.28]
[1765494815924,2.99,136.46,136.42,9.8757]
[1765494816118,3.04635456,136.45,136.42,9.92448732]
[1765494816318,3.04635456,136.45,136.42,0.04878732]
[1765494816518,2.99,136.44,136.42,0.04878732]
[1765494816719,3.04635456,136.45,136.42,0.04878732]
[1765494817418,2.99,136.44,136.42,0.04878732]
[1765494818931,9.5853,136.44,136.42,0.04878732]
[1765494819226,2.99,136.43,136.42,0.04878732]
[1765494819933,2.99,136.43,136.38,6.5975]
[1765494820133,2.99,136.41,136.38,6.5975]
[1765494820926,3.03968455,136.41,136.38,6.6474905]
[1765494822428,3.03968455,136.41,136.38,9.9274905]
[1765494822634,3.03968455,136.41,136.38,3.3299905]
[1765494823026,3.03968455,136.41,136.38,0.0499905]
[1765494825533,2.94,136.36,136.28,3.28]
[1765494825738,69.11027596,136.35,136.28,3.28]
[1765494825929,65.3,136.35,136.28,3.28]
[1765494826235,71.8996,136.35,136.28,9.8826]
[1765494826434,0.05374222,136.33,136.3,3.32796256]
[1765494827135,2.99374222,136.33,136.3,0.04796256]
[1765494827539,2.94,136.31,136.3,0.04796256]
[1765494827725,2.94,136.31,136.24,3.28]
[1765494828134,62.36,136.3,136.24,3.28]
[1765494828441,65.3,136.3,136.25,3.28]
[1765494828736,0.05640188,136.29,136.26,3.2564108]
[1765494830538,0.05640188,136.29,136.28,3.21]
[1765494834737,6.5996,136.35,136.31,3.21]
[1765494834738,71.9996,136.35,136.31,3.21]
[1765494835051,3.0,136.34,136.31,3.21]
[1765494835751,3.05422688,136.34,136.31,3.25799165]
[1765494837246,0.05422688,136.34,136.31,9.85909165]
[1765494838148,3.05422688,136.34,136.31,9.85909165]
[1765494840254,0.05422688,136.34,136.32,9.8106]
[1765494840447,0.05422688,136.34,136.33,3.21]
[1765494840754,0.05422688,136.34,136.32,6.6006]
[1765494841151,3.05422688,136.34,136.31,0.04799165]
[1765494841456,0.05422688,136.34,136.31,3.25799165]
[1765494841754,3.05422688,136.34,136.31,0.04799165]
[1765494842759,5.65373107,136.33,136.31,0.04799165]
[1765494846653,3.0,136.32,136.21,165.1]
[1765494846853,2.65373107,136.24,136.21,3.21]
[1765494847351,2.95,136.24,136.2,3.21]
[1765494847550,5.60373107,136.24,136.2,3.21]
[1765494847753,0.05071931,136.23,136.21,3.26141139]
[1765494848147,0.05071931,136.23,136.21,9.86741139]
[1765494848655,3.00071931,136.23,136.21,0.05141139]
[1765494856248,3.00071931,136.23,136.16,9.8185]
[1765494856759,2.95,136.22,136.16,9.8185]
[1765494856963,2.95,136.2,136.16,9.8185]
[1765494857366,2.99624527,136.19,136.17,0.05634379]
[1765494858066,0.04624527,136.19,136.17,6.66434379]
[1765494858264,0.04624527,136.19,136.17,9.99434379]
[1765494858564,0.04624527,136.19,136.17,6.66434379]
[1765494858867,0.04624527,136.19,136.17,9.82434379]
[1765494859766,2.99624527,136.19,136.17,0.05634379]
[1765494859967,0.04624527,136.19,136.17,0.05634379]
[1765494860167,0.04624527,136.19,136.17,3.21634379]
[1765494860667,0.04624527,136.19,136.17,9.82414379]
[1765494860966,0.04624527,136.19,136.17,3.21634379]
[1765494861569,0.04624527,136.19,136.17,0.05634379]
[1765494861870,2.99624527,136.19,136.17,0.05634379]
[1765494862368,0.04624527,136.19,136.17,3.21634379]
[1765494864365,0.04624527,136.19,136.17,9.82434379]
[1765494864560,0.04624527,136.19,136.18,3.16]
[1765494873066,0.04624527,136.19,136.18,9.7677]
[1765494875066,0.04624527,136.19,136.18,3.16]
[1765494877667,0.04624527,136.19,136.17,3.21634379]
[1765494878882,0.04624527,136.19,136.18,9.7677]
[1765494883979,29.03402024,136.24,136.21,3.16]
[1765494884274,65.46,136.23,136.2,9.7664]
[1765494884774,7.15272929,136.22,136.19,3.16]
[1765494885170,7.20058944,136.22,136.19,3.21592555]
[1765494885672,3.0,136.21,136.19,0.05592555]
[1765494886783,7.15272929,136.2,136.19,0.05592555]
[1765494887482,3.0,136.19,136.16,3.16]
[1765494888479,3.05065943,136.19,136.16,3.2156996]
[1765494888680,4.15272929,136.18,136.16,3.2156996]
[1765494888881,0.05065943,136.19,136.16,3.2156996]
[1765494889183,0.05065943,136.19,136.17,3.38]
[1765494890476,0.05065943,136.19,136.16,6.6641996]
[1765494890477,3.05065943,136.19,136.16,6.6641996]
[1765494890678,3.05065943,136.19,136.16,3.4356996]
[1765494891484,4.15272929,136.18,136.16,3.4356996]
[1765494891885,3.0,136.17,136.16,0.0556996]
[1765494892087,3.0,136.17,136.11,3.38]
[1765494892384,7.15272929,136.15,136.11,3.38]
[1765494893286,7.15272929,136.15,136.07,116.57377283]
[1765494893287,0.05486594,136.14,136.12,3.42659716]
[1765494896585,0.05486594,136.14,136.13,3.38]
[1765494900484,70.40924397,136.21,136.15,3.38]
[1765494900880,65.53,136.21,136.15,3.38]
[1765494901079,72.1366,136.21,136.17,3.38]
[1765494901282,3.05,136.2,136.17,3.38]
[1765494901479,0.05201976,136.2,136.17,7.58078848]
[1765494901681,0.05201976,136.2,136.19,7.53272929]
[1765494901888,0.05201976,136.2,136.19,3.38]
[1765494902792,3.10201976,136.2,136.18,3.38]
[1765494902990,3.10201976,136.2,136.17,0.04805919]
[1765494903498,3.10201976,136.2,136.17,3.42805919]
[1765494903692,3.10201976,136.2,136.17,0.04805919]
[1765494904696,65.53,136.19,136.17,0.04805919]
[1765494904884,69.68272929,136.19,136.17,0.04805919]
[1765494905484,62.48,136.19,136.17,3.42805919]
[1765494905695,62.48,136.19,136.17,0.04805919]
[1765494905696,65.53,136.19,136.17,0.04805919]
[1765494905885,0.05201976,136.2,136.19,3.38]
[1765494908185,0.05201976,136.2,136.17,3.42805919]
[1765494908394,3.05,136.18,136.17,0.04805919]
[1765494909696,3.05,136.18,136.14,3.38]
[1765494909894,3.05,136.16,136.09,174.47328008]
[1765494910200,7.20272929,136.15,136.11,3.38]
[1765494910800,2.66087343,136.13,136.12,3.4327677]
[1765494912989,0.05596612,136.14,136.12,3.4327677]
[1765494914197,0.05596612,136.14,136.13,3.38]
[1765494915611,2.71683955,136.14,136.13,3.38]
[1765494918702,2.71683955,136.14,136.12,3.3127677]
[1765494919410,2.71683955,136.14,136.13,3.36]
[1765494919907,0.05596612,136.14,136.13,3.36]
[1765494921915,0.05596612,136.14,136.12,3.4127677]
[1765494922105,2.66087343,136.17,136.12,3.4127677]
[1765494922307,2.66087343,136.18,136.13,3.36]
[1765494922505,2.66087343,136.18,136.16,3.36]
[1765494923113,2.70847417,136.18,136.16,3.41139618]
[1765494925607,2.70847417,136.18,136.17,3.36]
[1765494925817,0.04760074,136.18,136.17,3.36]
[1765494927009,0.04760074,136.18,136.17,9.9681]
[1765494928405,5.78087343,136.23,136.2,3.36]
[1765494929303,5.82835981,136.23,136.2,3.40938048]
[1765494929501,2.66087343,136.21,136.2,0.04938048]
[1765494929705,5.82087343,136.21,136.2,0.04938048]
[1765494929913,3.16,136.2,136.14,3.36]
[1765494930100,2.66087343,136.18,136.14,3.36]
[1765494930309,2.66087343,136.18,136.16,3.36]
[1765494930912,2.71559663,136.18,136.16,3.41183934]
[1765494933911,2.71559663,136.18,136.16,10.02043934]
[1765494935817,2.71559663,136.18,136.17,3.36]
[1765494936022,0.0547232,136.18,136.17,3.36]
[1765494937214,0.0547232,136.18,136.16,10.02043934]
[1765494937416,3.2147232,136.18,136.16,10.02043934]
[1765494938620,0.0547232,136.18,136.16,10.02043934]
[1765494939420,2.71559663,136.18,136.16,10.02043934]
[1765494939724,2.71559663,136.18,136.17,9.9681]
[1765494940120,0.0547232,136.18,136.17,9.9681]
[1765494942728,87.75947991,136.24,136.17,3.36]
[1765494942928,2.66087343,136.23,136.21,3.36]
[1765494943133,5.88087343,136.23,136.21,3.36]
[1765494943716,5.88087343,136.23,136.21,3.41059874]
[1765494943930,5.93149744,136.23,136.21,3.41059874]
[1765494944627,2.71149744,136.23,136.22,3.36]
[1765494945726,2.71149744,136.23,136.21,3.41059874]
[1765494947826,2.71149744,136.23,136.21,10.01679874]
[1765494949623,0.05062401,136.23,136.21,10.01679874]
[1765494949828,2.71149744,136.23,136.21,10.01679874]
[1765494951231,2.71149744,136.23,136.22,9.9957]
[1765494952236,2.71149744,136.23,136.22,6.6057]
[1765494953538,5.92149744,136.23,136.21,10.04669874]
[1765494953736,5.92149744,136.23,136.21,3.44059874]
[1765494955036,2.71149744,136.23,136.21,3.44059874]
[1765494956138,0.05062401,136.23,136.21,3.44059874]
[1765494957946,0.05062401,136.23,136.22,9.9957]
[1765494960647,2.66087343,136.26,136.25,9.9943]
[1765494960836,2.66087343,136.28,136.26,3.39]
[1765494961236,2.66087343,136.3,136.29,3.39]
[1765494961835,2.66087343,136.3,136.28,0.04628802]
[1765494962026,2.66087343,136.3,136.28,3.43628802]
[1765494965341,2.66087343,136.3,136.29,3.39]
[1765494966943,0.04955888,136.31,136.3,3.39]
[1765494969249,2.66087343,136.34,136.28,0.04628802]
[1765494969250,2.66087343,136.34,136.32,3.39]
[1765494969746,2.66087343,136.34,136.33,3.39]
[1765494970145,62.4939713,136.35,136.33,3.39]
[1765494970354,62.4939713,136.35,136.34,3.39]
[1765494970652,0.0539713,136.35,136.34,3.39]
[1765494971245,0.0539713,136.35,136.33,3.39]
[1765494972039,3.2639713,136.35,136.33,3.39]
[1765494972450,3.21,136.34,136.32,0.05359316]
[1765494972648,4.14355477,136.33,136.32,0.05359316]
[1765494972944,7.35355477,136.33,136.32,0.05359316]
[1765494973152,69.77355477,136.33,136.26,3.39]
[1765494973354,4.14355477,136.31,136.26,3.39]
[1765494974052,4.14355477,136.31,136.28,3.39]
[1765494974235,0.05114702,136.3,136.28,3.39]
[1765494974442,0.05114702,136.3,136.29,9.9922]
[1765494974635,62.42,136.33,136.3,3.39]
[1765494975446,4.14355477,136.38,136.32,3.27]
[1765494975758,0.04826433,136.36,136.35,3.27]
[1765494975937,7.4518191,136.36,136.34,0.05317902]
[1765494976140,3.26,136.35,136.34,0.05317902]
[1765494976544,3.26,136.34,136.28,3.27]
[1765494976850,3.26,136.31,136.28,3.27]
[1765494977244,7.40355477,136.32,136.29,6.6022]
[1765494977440,7.40355477,136.32,136.29,9.8722]
[1765494977645,0.04800743,136.32,136.3,9.8718]
[1765494978243,0.04800743,136.32,136.31,3.27]
[1765494979953,1.27680652,136.37,136.34,9.9899]
[1765494980149,3.21,136.34,136.29,3.39]
[1765494980449,4.14355477,136.33,136.29,3.39]
[1765494980944,4.14355477,136.33,136.28,102.7077]
[1765494980945,0.05561248,136.32,136.31,9.9913]
[1765494981748,0.05561248,136.32,136.3,0.05233591]
[1765494981951,3.26561248,136.32,136.3,0.05233591]
[1765494982155,4.14355477,136.31,136.3,0.05233591]
[1765494983552,7.35355477,136.31,136.3,0.05233591]
[1765494984258,4.14355477,136.31,136.3,0.05233591]
[1765494985052,0.05561248,136.32,136.3,3.44233591]
[1765494985657,0.05561248,136.32,136.3,10.04403591]
[1765494986158,0.05561248,136.32,136.31,3.39]
[1765494987954,3.26561248,136.32,136.3,0.05233591]
[1765494991662,7.35355477,136.31,136.3,0.05233591]
[1765494993857,4.14355477,136.31,136.3,0.05233591]
[1765494994060,0.05561248,136.32,136.3,3.44233591]
[1765494997868,3.26561248,136.32,136.3,0.05233591]
[1765494998166,7.35355477,136.31,136.3,0.05233591]
[1765495000167,3.21,136.31,136.3,0.05233591]
[1765495004063,0.05561248,136.32,136.3,3.44233591]
[1765495005773,3.26561248,136.32,136.3,3.44233591]
[1765495005973,0.05561248,136.32,136.3,10.04413591]
[1765495006372,0.05561248,136.32,136.31,6.6014]
[1765495007072,0.05561248,136.32,136.3,0.05233591]
[1765495007073,3.21,136.31,136.3,0.05233591]
[1765495016478,3.06,136.29,136.25,13.43836187]
[1765495016681,6.6022,136.3,136.26,3.09]
[1765495016682,3.06,136.3,136.26,3.09]
[1765495016982,3.06,136.3,136.27,3.09]
[1765495017585,3.10969919,136.3,136.27,3.14407815]
[1765495017986,3.10969919,136.3,136.27,0.05407815]
[1765495018489,3.06,136.28,136.27,0.05407815]
[1765495020588,3.06,136.28,136.24,3.09]
[1765495020786,62.42,136.27,136.25,3.09]
[1765495021088,65.52969919,136.3,136.25,3.09]
[1765495021289,3.06,136.29,136.26,9.6937]
[1765495021586,3.06,136.29,136.27,3.09]
[1765495022082,0.04969919,136.3,136.29,3.09]
[1765495028894,3.06,136.35,136.31,3.09]
[1765495029098,3.06,136.35,136.29,9.92426187]
[1765495029296,3.06,136.33,136.29,6.83426187]
[1765495029595,3.06,136.33,136.28,9.92426187]
[1765495029891,7.20355477,136.3,136.29,0.04678681]
[1765495032695,5.71484486,136.3,136.29,0.04678681]
[1765495036804,2.65484486,136.3,136.29,0.04678681]
[1765495036994,0.05487741,136.32,136.29,3.43678681]
[1765495037200,3.26487741,136.32,136.29,3.43678681]
[1765495037805,5.86484486,136.31,136.29,3.43678681]
[1765495037998,5.86484486,136.31,136.29,10.03908681]
[1765495038303,3.21,136.3,136.29,0.04678681]
[1765495042304,9.8118,136.3,136.29,0.04678681]
[1765495042605,9.8118,136.3,136.23,6.86359422]
[1765495042606,3.06,136.25,136.23,6.86359422]
[1765495042805,3.06,136.23,136.21,6.86359422]
[1765495043002,5.71484486,136.24,136.21,3.1]
[1765495043400,2.65484486,136.22,136.21,3.15371725]
[1765495043911,0.04758286,136.24,136.23,3.1]
[1765495048413,62.44,136.27,136.25,3.1]
[1765495048805,62.44,136.27,136.25,9.7041]
[1765495049002,62.44,136.27,136.26,3.1]
[1765495049608,62.44,136.27,136.25,9.75451782]
[1765495050506,62.44,136.27,136.26,3.1]
[1765495052213,0.05436422,136.28,136.26,9.7033]
[1765495052415,0.05436422,136.28,136.27,3.1]
[1765495054213,0.05436422,136.28,136.27,9.7033]
[1765495059029,0.05436422,136.28,136.26,3.1]
[1765495059622,2.70920908,136.28,136.26,3.1]
[1765495060030,2.70920908,136.28,136.26,9.7037]
[1765495060421,3.06,136.27,136.25,0.05041782]
[1765495060623,5.71484486,136.26,136.25,0.05041782]
[1765495060922,3.06,136.26,136.25,0.05041782]
[1765495061122,5.71484486,136.26,136.25,0.05041782]
[1765495061331,3.06,136.25,136.2,3.1]
[1765495061629,2.65484486,136.23,136.2,3.1]
[1765495062032,2.65484486,136.23,136.22,3.1]
[1765495063426,2.65484486,136.23,136.21,3.15445781]
[1765495064220,2.65484486,136.23,136.21,9.76065781]
[1765495064820,3.06,136.22,136.21,0.05445781]
[1765495067828,0.05183724,136.24,136.21,3.15445781]
[1765495068031,2.65484486,136.23,136.21,3.15445781]
[1765495069039,2.65484486,136.23,136.22,3.27]
[1765495073836,0.05183724,136.24,136.22,9.8756]
[1765495074134,0.05183724,136.24,136.23,3.27]
[1765495075342,3.15183724,136.24,136.21,0.05445781]
[1765495075640,3.1,136.22,136.21,0.05445781]
[1765495076930,3.1,136.22,136.18,3.27]
[1765495077135,5.75484486,136.2,136.18,3.27]
[1765495077335,2.65484486,136.2,136.18,3.27]
[1765495078046,2.7099907,136.2,136.19,3.27]
[1765495078254,0.05514584,136.2,136.19,3.27]
[1765495079669,6.6072,136.19,136.14,3.27]
[1765495079948,5.75484486,136.18,136.14,3.27]
[1765495080144,2.65484486,136.18,136.14,3.27]
[1765495080335,2.65484486,136.18,136.16,3.27]
[1765495080739,0.05301988,136.18,136.16,9.93046934]
[1765495080936,0.05301988,136.18,136.17,3.27]
[1765495082948,2.65484486,136.22,136.19,3.27]
[1765495084047,0.04970116,136.22,136.2,3.27]
[1765495084843,0.04970116,136.22,136.2,9.8766]
[1765495085049,0.04970116,136.22,136.21,3.27]
[1765495085954,27.85741508,136.26,136.23,3.27]
[1765495086544,24.75741508,136.26,136.23,3.27]
[1765495086753,62.46,136.27,136.24,3.27]
[1765495087055,62.51327084,136.27,136.24,3.32615872]
[1765495087253,62.51327084,136.27,136.25,9.874]
[1765495087453,3.1,136.26,136.24,0.05615872]
[1765495095755,3.15,136.25,136.24,0.05615872]
[1765495096256,3.15,136.26,136.24,0.05615872]
[1765495096451,3.15,136.26,136.24,3.38615872]
[1765495096760,3.15,136.26,136.24,0.05615872]
[1765495097859,3.15,136.26,136.24,6.66085872]
[1765495098653,3.15,136.26,136.24,9.99085872]
[1765495099762,3.15,136.26,136.24,6.66085872]
[1765495101062,3.15,136.26,136.25,6.6043]
[1765495101263,3.15327084,136.27,136.25,6.6043]
[1765495102858,0.05327084,136.27,136.26,6.6038]
[1765495103064,0.05327084,136.27,136.26,9.7938]
[1765495104675,4.20364353,136.27,136.19,12.33268008]
[1765495104965,4.15037269,136.22,136.19,3.19]
[1765495105767,4.20182453,136.22,136.19,9.85152345]
[1765495106868,4.20182453,136.22,136.2,6.6065]
[1765495107173,0.05145184,136.22,136.2,9.7965]
[1765495108468,0.05145184,136.22,136.2,3.19]
[1765495110666,0.05145184,136.22,136.19,3.24442345]
[1765495114078,4.15037269,136.21,136.19,0.05442345]
[1765495117487,4.15037269,136.2,136.19,0.05442345]
[1765495118588,4.15037269,136.21,136.19,0.05442345]
[1765495120795,4.15037269,136.21,136.19,3.24442345]
[1765495121379,0.05145184,136.22,136.19,3.24442345]
[1765495121584,4.20182453,136.22,136.19,3.24442345]
[1765495121990,4.20182453,136.22,136.19,9.85152345]
[1765495124192,4.20182453,136.22,136.2,3.19]
[1765495124785,4.20182453,136.22,136.19,0.05442345]
[1765495124985,4.20182453,136.22,136.19,3.24442345]
[1765495126086,4.20182453,136.22,136.19,0.05442345]
[1765495126689,4.15037269,136.2,136.19,0.05442345]
[1765495130298,4.15037269,136.2,136.19,3.44442345]
[1765495131301,4.20182453,136.22,136.19,3.44442345]
[1765495134505,0.05145184,136.22,136.19,3.44442345]
[1765495134809,4.20182453,136.22,136.19,3.44442345]
[1765495137011,10.80752453,136.22,136.19,3.44442345]
[1765495137412,10.80752453,136.22,136.19,10.05152345]
[1765495137413,4.20182453,136.22,136.19,10.05152345]
[1765495137913,4.20182453,136.22,136.19,3.44442345]
[1765495140615,4.20182453,136.22,136.19,0.05442345]
[1765495140815,4.15037269,136.2,136.19,0.05442345]
[1765495143212,10.75707269,136.2,136.19,0.05442345]
[1765495144612,4.15037269,136.2,136.14,3.33]
[1765495144818,4.15037269,136.17,136.14,3.33]
[1765495145017,66.63037269,136.17,136.13,3.33]
[1765495145619,0.05288069,136.16,136.15,3.33]
[1765495146012,0.05288069,136.16,136.14,0.0559608]
[1765495146213,0.05288069,136.16,136.14,3.3859608]
[1765495148319,6.6091,136.15,136.14,0.0559608]
[1765495148527,10.75947269,136.15,136.14,0.0559608]
[1765495149024,111.11254538,136.15,136.09,3.33]
[1765495149332,4.15037269,136.11,136.05,3.33]
[1765495149627,4.15037269,136.09,136.02,12.47268008]
[1765495149812,4.20445055,136.07,136.04,0.04982336]
[1765495150017,4.20445055,136.07,136.04,3.37982336]
[1765495150222,0.00407786,136.07,136.04,3.37982336]
[1765495150429,4.15037269,136.11,136.05,3.33]
[1765495151523,0.04739815,136.09,136.05,3.33]
[1765495152530,4.19777084,136.09,136.05,3.33]
[1765495153320,0.04739815,136.09,136.05,3.33]
[1765495154628,0.04739815,136.09,136.08,3.33]
[1765495157932,65.16238957,136.12,136.08,3.33]
[1765495158828,0.04846215,136.11,136.1,3.14]
[1765495161234,0.04846215,136.11,136.09,9.7518]
[1765495161636,0.04846215,136.11,136.1,3.14]
[1765495165728,2.66238957,136.12,136.09,3.14]
[1765495166638,2.71540996,136.12,136.09,3.14]
[1765495166838,2.66238957,136.1,136.09,3.14]
[1765495167633,2.66238957,136.1,136.07,3.18808313]
[1765495168732,2.66238957,136.1,136.08,9.7525]
[1765495170736,0.05302039,136.12,136.11,3.14]
[1765495171440,0.05302039,136.12,136.11,9.7511]
[1765495174632,0.05302039,136.12,136.11,3.14]
[1765495175644,0.05302039,136.12,136.11,9.7511]
[1765495179136,6.71023491,136.22,136.15,3.14]
[1765495179333,2.66238957,136.16,136.15,3.14]
[1765495185557,2.66238957,136.16,136.14,0.05382627]
[1765495185746,2.66238957,136.16,136.1,3.14]
[1765495185948,2.66238957,136.12,136.1,3.14]
[1765495186643,2.7120453,136.12,136.1,3.1872651]
[1765495186840,2.66238957,136.11,136.1,3.1872651]
[1765495188057,2.66238957,136.11,136.1,9.7987651]
[1765495190351,0.04965573,136.12,136.11,3.38]
[1765495190650,2.7120453,136.12,136.11,3.38]
[1765495194663,2.7120453,136.12,136.1,0.0472651]
[1765495195959,2.7120453,136.12,136.04,9.14268008]
[1765495196164,2.66238957,136.05,136.03,3.38]
[1765495196349,2.66238957,136.04,136.03,3.38]
[1765495196552,2.66238957,136.04,136.0,3.38]
[1765495196763,125.43248546,136.09,136.0,3.38]
[1765495196764,2.66238957,136.02,136.0,3.38]
[1765495196965,2.70882201,136.02,136.0,3.43550439]
[1765495197559,2.70882201,136.02,136.0,0.05550439]
[1765495197764,9.32452201,136.02,135.95,3.38]
[1765495197951,2.66238957,135.99,135.95,3.38]
[1765495198766,2.66238957,135.99,135.97,3.38]
[1765495198767,0.04772273,135.98,135.97,3.38]
[1765495199253,2.66238957,136.01,135.97,3.38]
[1765495199459,2.66238957,135.99,135.97,3.38]
[1765495199856,2.66238957,135.99,135.94,3.38]
[1765495200361,0.05428747,135.98,135.96,3.38]
[1765495200750,2.66238957,135.97,135.95,3.43229099]
[1765495200957,2.66238957,135.96,135.95,3.43229099]
[1765495201462,2.66238957,135.96,135.95,0.05229099]
[1765495203365,2.66238957,135.96,135.92,3.38]
[1765495203571,2.66238957,135.93,135.92,3.38]
[1765495205062,0.05426304,135.94,135.92,3.38]
[1765495205973,102.8925,136.04,135.92,3.38]
[1765495206156,2.66238957,135.99,135.93,3.38]
[1765495206352,62.54,136.01,135.93,3.38]
[1765495206754,2.66238957,136.0,135.93,3.38]
[1765495206959,9.27898957,136.0,135.94,3.38]
[1765495207164,0.05057011,135.98,135.96,3.38]
[1765495207969,2.71295968,135.98,135.96,3.38]
[1765495209772,2.71295968,135.98,135.95,0.05425175]
[1765495210070,2.66238957,135.96,135.95,0.05425175]
[1765495210272,2.71295968,135.98,135.95,3.43425175]
[1765495211176,0.05057011,135.98,135.95,3.43425175]
[1765495213367,62.56,136.0,135.96,3.38]
[1765495213674,2.66238957,136.04,135.97,3.38]
[1765495213970,2.66238957,136.04,136.0,3.38]
[1765495214475,0.05076772,136.03,136.02,3.38]
[1765495215665,62.56,136.05,136.02,3.38]
[1765495216676,62.61220956,136.05,136.02,3.38]
[1765495218176,62.61220956,136.05,136.03,3.18]
[1765495218469,62.61220956,136.05,136.01,0.05544026]
[1765495218470,62.61220956,136.05,136.01,3.23544026]
[1765495219675,62.61220956,136.05,136.02,3.34]
[1765495220477,62.61220956,136.05,136.01,3.39544026]
[1765495221972,62.61220956,136.05,136.01,10.01124026]
[1765495222172,62.61220956,136.05,136.02,3.34]
[1765495223974,62.61220956,136.05,136.01,10.01124026]
[1765495227276,62.61220956,136.05,136.02,3.34]
[1765495229380,62.61220956,136.05,136.04,3.34]
[1765495233078,62.61220956,136.05,136.04,9.9545]
[1765495236482,62.54,136.1,136.07,9.953]
[1765495236783,62.54,136.1,136.07,3.34]
[1765495237376,62.59651042,136.1,136.08,6.6124]
[1765495237569,4.16237738,136.09,136.07,0.05429228]
[1765495238482,4.16237738,136.09,136.07,6.66719228]
[1765495240984,4.16237738,136.09,136.07,0.05429228]
[1765495244686,66.70237738,136.09,136.07,0.05429228]
[1765495245585,62.54,136.09,136.07,0.05429228]
[1765495247888,62.54,136.09,136.07,10.00729228]
[1765495248485,62.54,136.09,136.07,6.66729228]
[1765495248783,4.16237738,136.08,136.07,0.05429228]
[1765495250182,62.54,136.09,136.07,6.66729228]
[1765495250779,62.54,136.09,136.08,3.1]
[1765495250986,88.26,136.21,136.1,3.1]
[1765495250987,4.16237738,136.17,136.1,3.1]